{"text_format":"1","workbook":"xlsx","n_sheets":3,"sheets":["SuperAmateurRS","Papier","Pilotage"],"not_rendered":{"charts":0,"images":0,"macros":1,"external_links":0,"defined_names":22,"comments":0,"pivot_tables":0},"unopened":[],"bounds":{"document_bytes":16777216,"sheet_cells":100000,"rows_first":2000,"rows_last":500,"rows_between":2000,"halvings":0,"cell_chars":16384,"cell_head_chars":4096},"cells_cut":0,"cells_raw":0,"read":"whole","date_system":"1900"}

{"sheet":"SuperAmateurRS","index":0,"n_rows":18,"n_cols":18,"rows_kept":18,"cut":false,"hidden":false,"merged":[[0,17,0,19],[3,17,3,18]]}
["RANG","JOUEUR","TRS","PJ","IPS","FP","% VIC","DIFF","ERO","EC","TVP","Équipe",null,null,"André Rioux","$B$3",null,"Indiquez votre nom dans la case Personne sondée.\nDéléguez cinq joueurs qui ne font pas partie de votre équipe à qui vous feriez confiance pour faire partie du comité de cotation. \n\nTrier les joueurs du plus fort (1er rang) au plus faible (dernier rang).\n- Sélectionnez un joueur dans la liste.\n- Pour le monter, utilisez la combinaison de touche CTRL+H ou bouton +.\n- Pour le descendre, utilisez la combinaison de touche CTRL+B ou bouton -."]
[null,1,2,3,4,5,6,7,8,9,10,11]
[1,"André Rioux",{"$f":"VLOOKUP($B3,PIL_STAT,C$2,FALSE)","v":70},72,570,"6.39","70.8",152,0,0,0,"Les Poolers"]
[2,"Sylvain Roger",{"$f":"VLOOKUP($B4,PIL_STAT,C$2,FALSE)","v":80},48,592,"6.52","68.8",112,1,0,2,"Les Burger Kings",null,null,"Personne sondée",null,null,"Proposition de comité"]
[3,"André Bolduc",80,72,575,"6.40","68.1",133,1,0,1,"L'équipe dernière minute",null,null,null,null,null,"Joueur #1"]
[4,"Eric Bolduc",80,56,540,"6.13","60.7",85,2,0,2,"L'équipe dernière minute",null,null,null,null,null,"Joueur #2"]
[5,"Yohann Fecteau",80,56,499,"5.79","53.6",45,3,0,3,"Les Burger Kings",null,null,null,null,null,"Joueur #3"]
[6,"Frédéric Dubois",80,72,478,"5.59","54.2",49,0,0,0,"Les Burger Kings",null,null,null,null,null,"Joueur #4"]
[7,"Jean-Guy Croteau",80,72,476,"5.62","48.6",4,4,2,4,"Les Burger Kings",null,null,null,null,null,"Joueur #5"]
[8,"Hugo Faucher",90,56,509,"5.96","55.4",13,1,3,1,"Les Poolers"]
[9,"Miguel Messervier",90,64,467,"5.49","53.1",22,0,0,0,"Les Poolers"]
[10,"Martin Lemay",90,72,437,"5.31","45.8",-35,0,2,0,"Ruby-Cube"]
[11,"Daniel Roberge",90,72,429,"5.23","47.2",-32,0,1,0,"Les Poolers"]
[12,"Francis Pilote",90,72,409,"5.06","43.1",-62,1,2,1,"L'équipe dernière minute"]
[13,"Stéphane Boisclair",90,72,376,"4.74","37.5",-100,0,2,0,"Ruby-Cube"]
[14,"Eric Roy",90,72,327,"4.39","36.1",-135,0,0,0,"Ruby-Cube"]
[15,"Daniel Lainesse",90,16,237,"3.57","18.8",-58,0,1,0,"Ruby-Cube"]
[16,"Carolanne Laroche",{"$f":"VLOOKUP($B18,PIL_STAT,C$2,FALSE)","v":100},64,333,"4.37","32.8",-123,0,1,0,"L'équipe dernière minute"]

{"sheet":"Papier","index":1,"n_rows":73,"n_cols":6,"rows_kept":73,"cut":false,"hidden":true,"merged":[[2,1,6,2]]}
[null,"Indiquez votre nom dans la case Personne sondée.",null,null,"Joueur","Rang 1 à 72"]
[null,null,null,null,"Alain Martel"]
[null,"Déléguez cinq joueurs qui ne font pas partie de votre équipe à qui vous feriez confiance pour faire partie du comité de cotation. ",null,null,"Alexandre Laroche"]
[null,null,null,null,"André Nadeau"]
[null,null,null,null,"Annie Roux"]
[null,null,null,null,"Audrey Girard-Gagnon"]
[null,null,null,null,"Carl Bilodeau (St-Nic)"]
[null,"Personne sondée",null,null,"Claude Tardif"]
[null,null,null,null,"Daniel Bujold"]
[null,null,null,null,"Daniel Gauthier"]
[null,"Joueur #1",null,null,"Dany Trépanier"]
[null,null,null,null,"Dave Beaulieu"]
[null,"Joueur #2",null,null,"Dave-Tom Gosselin"]
[null,null,null,null,"David Petit"]
[null,"Joueur #3",null,null,"Denis Légaré"]
[null,null,null,null,"Denis Roy"]
[null,"Joueur #4",null,null,"Denise Paquin (St-Henri)"]
[null,null,null,null,"Dominique Allaire"]
[null,"Joueur #5",null,null,"Dominique Moffet"]
[null,null,null,null,"Frédéric Vallières"]
[null,null,null,null,"Garry Conroy"]
[null,null,null,null,"Gilles Rousseau"]
[null,null,null,null,"Guy Boivin"]
[null,null,null,null,"Isabelle Nadeau"]
[null,null,null,null,"Jean Metivier"]
[null,null,null,null,"Jean-Philippe Langlois"]
[null,null,null,null,"Jean-Philippe Ross"]
[null,null,null,null,"Jérôme Tremblay"]
[null,null,null,null,"Jocelyn Laperrière"]
[null,null,null,null,"John Shea"]
[null,null,null,null,"Jordan Cayer"]
[null,null,null,null,"Julien Petitclerc"]
[null,null,null,null,"Manon Huet"]
[null,null,null,null,"Marco Lehoux"]
[null,null,null,null,"Marco Raby"]
[null,null,null,null,"Marie-Noël Naud"]
[null,null,null,null,"Mariline Boutet"]
[null,null,null,null,"Martin Conroy"]
[null,null,null,null,"Martin Lemay"]
[null,null,null,null,"Martin Lemieux"]
[null,null,null,null,"Martin Villeneuve"]
[null,null,null,null,"Maude Lacoursière"]
[null,null,null,null,"Maxime Larochelle-Tardif"]
[null,null,null,null,"Mélanie Roussin"]
[null,null,null,null,"Mélissa Tanguay"]
[null,null,null,null,"Michel Belley"]
[null,null,null,null,"Michel Bergeron"]
[null,null,null,null,"Michelle Drolet"]
[null,null,null,null,"Mickael Savard"]
[null,null,null,null,"Naomy St-Louis"]
[null,null,null,null,"Nathalie Bédard"]
[null,null,null,null,"Nelson Dubois"]
[null,null,null,null,"Pascal Gravel"]
[null,null,null,null,"Pascal St-Louis"]
[null,null,null,null,"Patrice Guay"]
[null,null,null,null,"Patrick Giroux"]
[null,null,null,null,"Patrick Saindon"]
[null,null,null,null,"Pierre Lemay"]
[null,null,null,null,"Réal Jobin"]
[null,null,null,null,"Real Maltais"]
[null,null,null,null,"Richard Simard"]
[null,null,null,null,"Rita Fortin"]
[null,null,null,null,"Samuel Paquet"]
[null,null,null,null,"Sébastien Picard (Québec)"]
[null,null,null,null,"Sébastien Touchette"]
[null,null,null,null,"Simon Poulin"]
[null,null,null,null,"Stéphane Boisclair"]
[null,null,null,null,"Stéphane Desroches"]
[null,null,null,null,"Stéphane Laliberté"]
[null,null,null,null,"Steve Lebrasseur"]
[null,null,null,null,"Sylvain Bernard"]
[null,null,null,null,"Tony Tache"]
[null,null,null,null,"Yves Picard"]

{"sheet":"Pilotage","index":2,"n_rows":40,"n_cols":14,"rows_kept":40,"cut":false,"hidden":true,"merged":[[3,0,3,11]]}
["SheetChange",null,null,null,null,"Version",null,null,null,null,"Fichier vierge",null,null,"Nom Fichier"]
[true,null,null,null,null,14,null,null,null,null,true,null,null,"Cotation_VIERGE_SuperAmateurRS"]
[]
["CLASSEMENT"]
["Joueur","TRS","PJ","IPS","FP","% VIC","DIFF","ERO","EC","TVP","Équipe","Statut"]
["André Rioux",70,72,570,"6.39","70.8",152,0,0,0,"Les Poolers",{"$f":"IF(K6=\"Substitut\",\"S\",\"R\")","v":"R"}]
["Sylvain Roger",80,48,592,"6.52","68.8",112,1,0,2,"Les Burger Kings",{"$f":"IF(K7=\"Substitut\",\"S\",\"R\")","v":"R"}]
["André Bolduc",80,72,575,"6.40","68.1",133,1,0,1,"L'équipe dernière minute",{"$f":"IF(K8=\"Substitut\",\"S\",\"R\")","v":"R"}]
["Eric Bolduc",80,56,540,"6.13","60.7",85,2,0,2,"L'équipe dernière minute",{"$f":"IF(K9=\"Substitut\",\"S\",\"R\")","v":"R"}]
["Yohann Fecteau",80,56,499,"5.79","53.6",45,3,0,3,"Les Burger Kings",{"$f":"IF(K10=\"Substitut\",\"S\",\"R\")","v":"R"}]
["Frédéric Dubois",80,72,478,"5.59","54.2",49,0,0,0,"Les Burger Kings",{"$f":"IF(K11=\"Substitut\",\"S\",\"R\")","v":"R"}]
["Jean-Guy Croteau",80,72,476,"5.62","48.6",4,4,2,4,"Les Burger Kings",{"$f":"IF(K12=\"Substitut\",\"S\",\"R\")","v":"R"}]
["Hugo Faucher",90,56,509,"5.96","55.4",13,1,3,1,"Les Poolers",{"$f":"IF(K13=\"Substitut\",\"S\",\"R\")","v":"R"}]
["Miguel Messervier",90,64,467,"5.49","53.1",22,0,0,0,"Les Poolers",{"$f":"IF(K14=\"Substitut\",\"S\",\"R\")","v":"R"}]
["Martin Lemay",90,72,437,"5.31","45.8",-35,0,2,0,"Ruby-Cube",{"$f":"IF(K15=\"Substitut\",\"S\",\"R\")","v":"R"}]
["Daniel Roberge",90,72,429,"5.23","47.2",-32,0,1,0,"Les Poolers",{"$f":"IF(K16=\"Substitut\",\"S\",\"R\")","v":"R"}]
["Francis Pilote",90,72,409,"5.06","43.1",-62,1,2,1,"L'équipe dernière minute",{"$f":"IF(K17=\"Substitut\",\"S\",\"R\")","v":"R"}]
["Stéphane Boisclair",90,72,376,"4.74","37.5",-100,0,2,0,"Ruby-Cube",{"$f":"IF(K18=\"Substitut\",\"S\",\"R\")","v":"R"}]
["Eric Roy",90,72,327,"4.39","36.1",-135,0,0,0,"Ruby-Cube",{"$f":"IF(K19=\"Substitut\",\"S\",\"R\")","v":"R"}]
["Daniel Lainesse",90,16,237,"3.57","18.8",-58,0,1,0,"Ruby-Cube",{"$f":"IF(K20=\"Substitut\",\"S\",\"R\")","v":"R"}]
["Carolanne Laroche",100,64,333,"4.37","32.8",-123,0,1,0,"L'équipe dernière minute",{"$f":"IF(K21=\"Substitut\",\"S\",\"R\")","v":"R"}]
[]
[]
["Tous - Alpha",null,null,null,null,null,null,null,null,null,"Réguliers - Alpha"]
["André Rioux",null,null,null,null,null,null,null,null,null,"André Rioux"]
["André Bolduc",null,null,null,null,null,null,null,null,null,"André Bolduc"]
["Carolanne Laroche",null,null,null,null,null,null,null,null,null,"Carolanne Laroche"]
["Daniel Lainesse",null,null,null,null,null,null,null,null,null,"Daniel Lainesse"]
["Daniel Roberge",null,null,null,null,null,null,null,null,null,"Daniel Roberge"]
["Eric Bolduc",null,null,null,null,null,null,null,null,null,"Eric Bolduc"]
["Eric Roy",null,null,null,null,null,null,null,null,null,"Eric Roy"]
["Francis Pilote",null,null,null,null,null,null,null,null,null,"Francis Pilote"]
["Frédéric Dubois",null,null,null,null,null,null,null,null,null,"Frédéric Dubois"]
["Hugo Faucher",null,null,null,null,null,null,null,null,null,"Hugo Faucher"]
["Jean-Guy Croteau",null,null,null,null,null,null,null,null,null,"Jean-Guy Croteau"]
["Martin Lemay",null,null,null,null,null,null,null,null,null,"Martin Lemay"]
["Miguel Messervier",null,null,null,null,null,null,null,null,null,"Miguel Messervier"]
["Stéphane Boisclair",null,null,null,null,null,null,null,null,null,"Stéphane Boisclair"]
["Sylvain Roger",null,null,null,null,null,null,null,null,null,"Sylvain Roger"]
["Yohann Fecteau",null,null,null,null,null,null,null,null,null,"Yohann Fecteau"]